bitfinex/quotes_BTCUSD_20250308
["timestamp","ask_amount","ask_price","bid_price","bid_amount"]
[1741424232581,0.00034,86333.0,86332.0,1.14232595]
[1741424234718,0.00034,86333.0,86332.0,1.16591772]
[1741424237279,0.00034,86333.0,86332.0,1.19091772]
[1741424238248,0.17966136,86368.0,86341.0,0.68426085]
[1741424238441,0.17966136,86368.0,86341.0,1.17963995]
[1741424238872,0.01850358,86342.0,86341.0,1.17963995]
[1741424239568,0.01850358,86342.0,86341.0,1.19751967]
[1741424240458,5.8e-07,86342.0,86341.0,1.22251967]
[1741424240800,0.10406136,86368.0,86367.0,0.243147]
[1741424241002,0.10406136,86368.0,86367.0,0.352467]
[1741424241697,0.10406136,86374.0,86367.0,0.352467]
[1741424241830,0.10406136,86374.0,86371.0,0.243136]
[1741424242031,0.00072704,86372.0,86371.0,0.243136]
[1741424243377,0.01230404,86372.0,86367.0,0.10932]
[1741424243856,0.011578,86368.0,86367.0,0.10932]
[1741424244024,0.011578,86368.0,86362.0,0.3216991]
[1741424244025,0.089378,86368.0,86362.0,0.3216991]
[1741424244190,0.011579,86361.0,86360.0,0.10944]
[1741424244389,0.011579,86357.0,86355.0,0.10944]
[1741424244586,0.0778,86356.0,86355.0,0.10944]
[1741424246005,0.0778,86356.0,86355.0,0.352622]
[1741424246560,0.0778,86356.0,86355.0,0.12102]
[1741424246706,0.0755,86365.0,86361.0,0.231586]
[1741424246912,0.0755,86365.0,86364.0,0.011578]
[1741424247728,0.09366288,86365.0,86364.0,0.011578]
[1741424248082,0.09366288,86365.0,86363.0,0.011579]
[1741424248267,0.09366288,86365.0,86362.0,0.011579]
[1741424248477,0.01816288,86365.0,86364.0,0.011578]
[1741424249589,0.01816288,86365.0,86362.0,0.243161]
[1741424249789,0.01816288,86365.0,86363.0,0.00115778]
[1741424249996,0.02974088,86365.0,86358.0,0.231593]
[1741424250202,0.02974088,86365.0,86359.0,0.00115779]
[1741424250404,0.01816288,86365.0,86360.0,0.011579]
[1741424250609,0.243162,86362.0,86359.0,0.11059779]
[1741424250821,0.243162,86362.0,86359.0,0.10944]
[1741424250822,0.011579,86360.0,86359.0,0.10944]
[1741424250958,0.011579,86362.0,86359.0,0.10944]
[1741424251168,0.011579,86363.0,86359.0,0.10944]
[1741424251978,0.243159,86363.0,86359.0,0.10944]
[1741424252204,0.011579,86362.0,86359.0,0.10944]
[1741424252493,0.011579,86361.0,86359.0,0.10944]
[1741424252915,0.11564036,86361.0,86359.0,0.10944]
[1741424253314,0.243167,86360.0,86359.0,0.10944]
[1741424253573,0.01158,86353.0,86352.0,0.00115789]
[1741424253874,0.01158,86353.0,86352.0,0.10944]
[1741424254222,0.011579,86357.0,86352.0,0.11059793]
[1741424254639,0.01158,86355.0,86352.0,0.11059793]
[1741424255671,0.01158,86354.0,86352.0,0.11059793]
[1741424256070,0.01158,86355.0,86352.0,0.11059793]
[1741424256309,0.011579,86359.0,86353.0,0.01158]
[1741424256513,0.011579,86359.0,86354.0,0.0011579]
[1741424256672,0.011579,86358.0,86354.0,0.0011579]
[1741424256856,0.011579,86358.0,86353.0,0.0011579]
[1741424257397,0.011579,86356.0,86353.0,0.0011579]
[1741424257807,0.01158,86353.0,86349.0,0.00115792]
[1741424258021,0.01158,86353.0,86342.0,0.553503]
[1741424258022,0.01158,86351.0,86350.0,0.10936]
[1741424258464,0.01158,86349.0,86343.0,0.00115795]
[1741424258672,0.01158,86349.0,86344.0,0.10944]
[1741424258880,0.322507,86346.0,86345.0,0.10972]
[1741424259293,0.243215,86343.0,86342.0,0.0001699]
[1741424259730,0.27940121,86343.0,86342.0,0.0001699]
[1741424260342,0.27940121,86343.0,86342.0,0.00023275]
[1741424260638,0.243215,86343.0,86342.0,0.00023275]
[1741424260840,0.26138269,86343.0,86342.0,0.00023275]
[1741424261749,0.011581,86342.0,86335.0,0.011582]
[1741424261921,0.011581,86341.0,86335.0,0.011582]
[1741424262303,0.011582,86340.0,86335.0,0.011582]
[1741424262544,0.011582,86340.0,86334.0,0.243238]
[1741424262784,0.00010312,86343.0,86340.0,0.243224]
[1741424262935,0.00010312,86343.0,86335.0,0.231655]
[1741424263144,0.00010312,86343.0,86337.0,0.243231]
[1741424263463,0.00010312,86343.0,86335.0,0.011582]
[1741424263464,0.011581,86342.0,86336.0,0.231653]
[1741424263665,0.011581,86342.0,86337.0,0.011582]
[1741424263844,0.011581,86341.0,86335.0,0.011582]
[1741424264045,0.00010312,86343.0,86339.0,0.243225]
[1741424264245,0.00010312,86343.0,86341.0,0.011581]
[1741424264627,0.00010312,86343.0,86340.0,0.231642]
[1741424265190,0.00010312,86343.0,86342.0,0.011581]
[1741424265592,0.00010312,86343.0,86342.0,0.121301]
[1741424265796,0.00010312,86343.0,86342.0,0.352937]
[1741424267815,0.00010312,86343.0,86342.0,0.10972]
[1741424267973,0.26148462,86343.0,86342.0,0.10972]
[1741424268996,0.26148462,86343.0,86342.0,0.1098899]
[1741424269656,0.10086962,86343.0,86342.0,0.1098899]
[1741424269803,0.01826962,86343.0,86342.0,0.1214709]
[1741424270851,0.01826962,86343.0,86342.0,0.12262898]
[1741424271737,0.01826962,86343.0,86342.0,0.11104798]
[1741424271960,0.01826962,86343.0,86342.0,0.3415259]
[1741424272166,0.00010312,86343.0,86342.0,0.3531069]
[1741424272605,0.00010312,86343.0,86342.0,0.1098899]
[1741424272824,0.00010312,86343.0,86342.0,0.11104796]
[1741424273225,0.00010312,86343.0,86342.0,0.3415259]
[1741424273720,0.00010312,86343.0,86342.0,0.1098899]
[1741424274151,0.01168412,86343.0,86342.0,0.1098899]
[1741424277367,0.24331812,86343.0,86342.0,0.1098899]
[1741424278353,0.26148518,86343.0,86342.0,0.1098899]
[1741424278557,0.01386087,86343.0,86342.0,0.1098899]
[1741424278687,0.24549487,86343.0,86342.0,0.1098899]
[1741424278888,0.243215,86343.0,86342.0,0.1098899]
[1741424280243,0.011581,86346.0,86342.0,0.1098899]
[1741424280441,0.011581,86346.0,86342.0,0.11000613]
[1741424280647,0.011581,86347.0,86342.0,0.11000613]
[1741424280849,0.011581,86347.0,86342.0,0.12158713]
[1741424281252,0.0003398,86343.0,86342.0,0.12158713]
[1741424282388,0.01850635,86343.0,86342.0,0.12158713]
[1741424282733,0.0003398,86343.0,86342.0,0.12158713]
[1741424284191,0.0003398,86343.0,86342.0,0.16844524]
[1741424284615,0.0003398,86343.0,86342.0,0.16890637]
[1741424285173,0.0003398,86343.0,86342.0,0.16844524]
[1741424287470,0.0003398,86343.0,86342.0,0.18298609]
[1741424288415,0.01850496,86343.0,86342.0,0.18298609]
[1741424290260,0.01850496,86343.0,86342.0,0.18321953]
[1741424290434,0.01850496,86343.0,86342.0,0.18298609]
[1741424290684,0.01850496,86343.0,86342.0,0.18322635]
[1741424290891,0.01850496,86343.0,86342.0,0.18298609]
[1741424291173,0.2233719,86365.0,86356.0,0.011579]
[1741424291597,0.01158,86355.0,86348.0,0.011581]
[1741424291711,0.01158,86355.0,86349.0,0.00115792]
[1741424292046,0.01158,86354.0,86349.0,0.01273792]
[1741424292226,0.01158,86353.0,86348.0,0.01273896]
[1741424292630,0.011579,86357.0,86351.0,0.231612]
[1741424292835,0.231581,86363.0,86353.0,0.243185]
[1741424292836,0.24316,86363.0,86353.0,0.243185]
[1741424293184,0.011579,86357.0,86351.0,0.231612]
[1741424293383,0.011579,86357.0,86351.0,0.243192]
[1741424293945,0.23930404,86370.0,86355.0,0.01158]
[1741424294304,0.1281,86373.0,86367.0,0.011578]
[1741424294505,0.0119168,86372.0,86367.0,0.011578]
[1741424294647,0.01850361,86368.0,86365.0,0.231575]
[1741424294858,0.0003398,86368.0,86365.0,0.231575]
[1741424295056,0.00893834,86368.0,86364.0,0.011578]
[1741424295257,0.0003398,86368.0,86364.0,0.243155]
[1741424295657,0.0119178,86368.0,86362.0,0.243159]
[1741424295876,0.0119178,86368.0,86362.0,0.011579]
[1741424296056,0.011578,86367.0,86362.0,0.011579]
[1741424296639,0.011578,86365.0,86360.0,0.231588]
[1741424296859,0.011579,86359.0,86353.0,0.307504]
[1741424297063,0.02828252,86365.0,86358.0,0.011579]
[1741424297239,0.011578,86365.0,86360.0,0.011579]
[1741424297596,0.011578,86364.0,86359.0,0.011579]
[1741424298913,0.02868784,86365.0,86360.0,0.243167]
[1741424299115,0.01710984,86365.0,86360.0,0.243167]
[1741424299348,0.011578,86365.0,86360.0,0.011579]
[1741424299547,0.02823529,86365.0,86360.0,0.011579]
[1741424299825,0.011578,86364.0,86359.0,0.011579]
[1741424300434,0.011578,86364.0,86358.0,0.011579]
[1741424300635,0.011579,86363.0,86358.0,0.01273684]
[1741424300952,0.26131181,86367.0,86358.0,0.00115784]
[1741424301157,0.011578,86365.0,86359.0,0.24317]
[1741424301540,0.011578,86365.0,86359.0,0.011579]
[1741424301769,0.011578,86365.0,86359.0,0.01273683]
[1741424301968,0.011578,86366.0,86360.0,0.243167]
[1741424302343,0.011578,86366.0,86360.0,0.231588]
[1741424302584,0.011578,86366.0,86359.0,0.011579]
[1741424302741,0.011578,86366.0,86360.0,0.011579]
[1741424302939,0.011578,86366.0,86360.0,0.243167]
[1741424303179,0.011578,86365.0,86359.0,0.011579]
[1741424303378,0.011578,86365.0,86359.0,0.01273683]
[1741424303678,0.011578,86365.0,86359.0,0.24432583]
[1741424303880,0.011578,86364.0,86357.0,0.243175]
[1741424304080,0.011578,86364.0,86358.0,0.00115784]
[1741424304480,0.011579,86359.0,86358.0,0.00115784]
[1741424304677,0.011579,86359.0,86353.0,0.0759]
[1741424304678,0.011579,86359.0,86355.0,0.00115788]
[1741424305108,0.011579,86360.0,86355.0,0.00115788]
[1741424305607,0.011579,86360.0,86359.0,0.0001698]
[1741424305808,0.243167,86360.0,86359.0,0.0001698]
[1741424310906,0.27938342,86360.0,86359.0,0.0001698]
[1741424313330,0.03621642,86360.0,86359.0,0.0001698]
[1741424313642,0.10424372,86364.0,86360.0,0.011579]
[1741424313845,0.03622968,86363.0,86360.0,0.243167]
[1741424314077,0.03622968,86363.0,86360.0,0.011579]
[1741424314185,0.03622968,86363.0,86359.0,0.0001698]
[1741424315491,0.04780868,86363.0,86359.0,0.0001698]
[1741424315720,0.03622968,86362.0,86359.0,0.0001698]
[1741424315898,0.011579,86361.0,86359.0,0.0001698]
[1741424316119,0.04780868,86360.0,86359.0,0.0001698]
[1741424327239,0.03622968,86360.0,86359.0,0.0001698]
[1741424327369,0.03622968,86360.0,86359.0,0.0117488]
[1741424327573,0.38856898,86370.0,86360.0,0.243167]
[1741424327574,0.04631864,86367.0,86360.0,0.243167]
[1741424327927,0.04631864,86367.0,86359.0,0.0117488]
[1741424327928,0.011578,86364.0,86359.0,0.0117488]
[1741424328127,0.03626653,86363.0,86359.0,0.0117488]
[1741424328754,0.04784553,86363.0,86359.0,0.0001698]
[1741424328974,0.03626653,86362.0,86359.0,0.0001698]
[1741424331789,0.011579,86361.0,86359.0,0.0001698]
[1741424332018,0.04784553,86360.0,86359.0,0.0001698]
[1741424333419,0.03626653,86360.0,86359.0,0.0001698]
[1741424333606,0.03626653,86362.0,86359.0,0.0001698]
[1741424333844,0.03626653,86361.0,86359.0,0.0001698]
[1741424334051,0.03626653,86362.0,86359.0,0.0001698]
[1741424334264,0.03626653,86361.0,86359.0,0.0001698]
[1741424334472,0.03626653,86362.0,86359.0,0.0001698]
[1741424334745,0.011579,86363.0,86359.0,0.0001698]
[1741424334746,0.03626653,86361.0,86359.0,0.0001698]
[1741424335187,0.03626653,86360.0,86359.0,0.0001698]
[1741424335396,0.03626653,86362.0,86359.0,0.0001698]
[1741424335620,0.03626653,86361.0,86359.0,0.0001698]
[1741424335835,0.03626653,86362.0,86359.0,0.0001698]
[1741424336052,0.03626653,86360.0,86359.0,0.0001698]
[1741424337008,0.03626653,86362.0,86359.0,0.0001698]
[1741424337348,0.03626653,86361.0,86359.0,0.0001698]
[1741424337673,0.03626653,86360.0,86359.0,0.0001698]
[1741424337864,0.03626653,86362.0,86359.0,0.0001698]
[1741424338168,0.03626653,86361.0,86359.0,0.0001698]
[1741424338372,0.03626653,86362.0,86359.0,0.0001698]
[1741424340400,0.15455,86428.0,86359.0,0.0001698]
[1741424340604,0.03627855,86366.0,86359.0,0.0001698]
[1741424340957,0.011578,86364.0,86359.0,0.0001698]
[1741424341167,0.0003396,86366.0,86361.0,0.231586]
[1741424341371,0.011578,86365.0,86359.0,0.0117488]
[1741424342717,0.011578,86365.0,86359.0,0.0001698]
[1741424345416,0.011578,86365.0,86359.0,0.2317578]
[1741424345570,0.0119176,86366.0,86360.0,0.231588]
[1741424345973,0.0003396,86366.0,86365.0,0.243153]
[1741424346182,0.0003396,86366.0,86365.0,0.326353]
[1741424346385,0.0003396,86366.0,86363.0,0.243159]
[1741424346585,0.0003396,86366.0,86362.0,0.011579]
[1741424346792,0.0003396,86366.0,86365.0,0.011578]
[1741424349409,0.011578,86364.0,86359.0,0.0001698]
[1741424349615,0.011579,86361.0,86359.0,0.0001698]
[1741424349846,0.011579,86360.0,86359.0,0.0001698]
[1741424350370,0.27942959,86360.0,86359.0,0.0001698]
[1741424350794,0.297594,86360.0,86359.0,0.0001698]
[1741424351449,0.243215,86343.0,86342.0,0.00028613]
[1741424351603,0.27947759,86343.0,86342.0,0.00028613]
[1741424353295,0.40947759,86343.0,86342.0,0.00028613]
[1741424353717,0.51879759,86343.0,86342.0,0.00028613]
[1741424355923,0.53696774,86343.0,86342.0,0.00028613]
[1741424356520,0.54584838,86343.0,86342.0,0.00028613]
[1741424357329,0.46274838,86343.0,86342.0,0.00028613]
[1741424358073,0.41584838,86343.0,86342.0,0.00028613]
[1741424358679,0.30652838,86343.0,86342.0,0.00028613]
[1741424361335,0.06331338,86343.0,86342.0,0.00028613]
[1741424361536,0.02705079,86343.0,86342.0,0.00028613]
[1741424362744,0.01817015,86343.0,86342.0,0.00028613]
[1741424363085,0.01158,86350.0,86342.0,0.24350313]
[1741424363527,0.01158,86351.0,86344.0,0.243211]
[1741424363749,0.01158,86352.0,86345.0,0.011581]
[1741424363954,0.01158,86350.0,86342.0,0.24350313]
[1741424364635,0.01158,86349.0,86343.0,0.011581]
[1741424365811,0.01816746,86348.0,86343.0,0.011581]
[1741424367858,0.01816746,86348.0,86342.0,0.24350313]
[1741424368055,0.01816746,86348.0,86344.0,0.011581]
[1741424368426,0.01816746,86348.0,86345.0,0.243209]
[1741424372946,0.01816746,86348.0,86346.0,0.057281]
[1741424373156,0.01816746,86348.0,86347.0,0.231623]
[1741424373366,0.01816746,86348.0,86346.0,0.0457]
[1741424375237,0.02974846,86348.0,86346.0,0.0457]
[1741424376089,0.02974846,86348.0,86342.0,0.01186713]
[1741424376295,0.011581,86348.0,86341.0,0.07610011]
[1741424376501,0.011581,86348.0,86342.0,0.231636]
[1741424377003,0.011581,86348.0,86342.0,0.243217]
[1741424377805,0.011581,86348.0,86345.0,0.0001698]
[1741424378995,0.011581,86346.0,86345.0,0.0001698]
[1741424380403,0.243207,86346.0,86345.0,0.0001698]
[1741424381383,0.2793609,86346.0,86345.0,0.0001698]
[1741424383239,0.243207,86346.0,86345.0,0.0001698]
[1741424383415,0.27938206,86346.0,86345.0,0.0001698]
[1741424386093,0.36258206,86346.0,86345.0,0.0001698]
[1741424391407,0.36292186,86346.0,86345.0,0.0001698]
[1741424397430,0.00637107,86346.0,86345.0,0.0001698]
[1741424397629,0.24957807,86346.0,86345.0,0.0001698]
[1741424406482,0.33147807,86346.0,86345.0,0.0001698]
[1741424408417,0.24957807,86346.0,86345.0,0.0001698]
[1741424410643,0.32867807,86346.0,86345.0,0.0001698]
[1741424412264,0.34684779,86346.0,86345.0,0.0001698]
[1741424414436,0.26774779,86346.0,86345.0,0.0001698]
[1741424415408,0.24957807,86346.0,86345.0,0.0001698]
[1741424418374,0.26774787,86346.0,86345.0,0.0001698]
[1741424420115,0.03612187,86346.0,86345.0,0.0001698]
[1741424420316,0.26774787,86346.0,86345.0,0.0001698]
[1741424421313,0.02454087,86346.0,86345.0,0.3228788]
[1741424421663,0.02454087,86346.0,86345.0,0.0796698]
[1741424422789,0.02454087,86346.0,86345.0,0.0912508]
[1741424423017,0.00637107,86346.0,86345.0,0.14050894]
[1741424423218,0.0003398,86346.0,86345.0,0.1550496]
[1741424423421,0.0003398,86346.0,86345.0,0.4767487]
[1741424423625,0.0003398,86346.0,86345.0,0.47559075]
[1741424424007,0.0003398,86346.0,86345.0,0.48259075]
[1741424424212,0.0003398,86346.0,86345.0,0.4680499]
[1741424424430,0.0003398,86346.0,86345.0,0.4610499]
[1741424425772,0.0003398,86346.0,86345.0,0.4680499]
[1741424427330,0.01850567,86346.0,86345.0,0.4680499]
[1741424427904,0.01850567,86346.0,86345.0,0.4564689]
[1741424428128,0.01850567,86346.0,86345.0,0.5658689]
[1741424428359,0.01850567,86346.0,86345.0,0.5774499]
[1741424428532,0.01850567,86346.0,86345.0,0.2557508]
[1741424429488,0.01850567,86346.0,86345.0,0.4873788]
[1741424431575,0.01850567,86346.0,86345.0,0.2441698]
[1741424431952,0.01850567,86346.0,86345.0,0.2557508]
[1741424439843,0.01850567,86346.0,86345.0,0.27075278]
[1741424440825,0.01850567,86346.0,86345.0,0.25621193]
[1741424441034,0.01850567,86346.0,86345.0,0.1347698]
[1741424441232,0.01850567,86346.0,86345.0,0.2440498]
[1741424441868,0.01850567,86346.0,86345.0,0.2370498]
[1741424442065,0.01850567,86346.0,86345.0,0.2556308]
[1741424442584,0.01850567,86346.0,86345.0,0.2486308]
[1741424442970,0.01850567,86346.0,86345.0,0.2556308]
[1741424443491,0.01850567,86346.0,86345.0,0.2486308]
[1741424444685,0.01950567,86346.0,86345.0,0.2556308]
[1741424445656,0.01850567,86346.0,86345.0,0.2486308]
[1741424445861,0.0013398,86346.0,86345.0,0.23746489]
[1741424446476,0.0003398,86346.0,86345.0,0.23046489]
[1741424446953,0.0013398,86346.0,86345.0,0.23746489]
[1741424447872,0.0013398,86346.0,86345.0,0.25200574]
[1741424448126,0.0013398,86346.0,86345.0,0.54534966]
[1741424448127,0.0003398,86346.0,86345.0,0.54534966]
[1741424448546,0.0013398,86346.0,86345.0,0.55234966]
[1741424448740,0.0013398,86346.0,86345.0,0.55200574]
[1741424449274,0.0003398,86346.0,86345.0,0.54534966]
[1741424449471,0.01850402,86346.0,86345.0,0.86704876]
[1741424449670,0.01950402,86346.0,86345.0,0.87404876]
[1741424450110,0.01950402,86346.0,86345.0,0.86670484]
[1741424450316,0.01850402,86346.0,86345.0,0.86714235]
[1741424450651,0.01850402,86346.0,86345.0,0.86670484]
[1741424451277,0.01850402,86346.0,86345.0,0.86714235]
[1741424451478,0.01850402,86346.0,86345.0,0.86670484]
[1741424451681,2e-08,86346.0,86345.0,1.45816597]
[1741424451883,0.10432819,86357.0,86356.0,0.55771885]
[1741424452057,0.10432819,86357.0,86356.0,0.79499885]
[1741424453268,0.0003396,86359.0,86358.0,0.68571385]
[1741424453470,6e-07,86359.0,86358.0,0.68571385]
[1741424453671,6e-07,86359.0,86358.0,0.73571385]
[1741424454356,6e-07,86359.0,86358.0,0.7544411]
[1741424454758,6e-07,86359.0,86358.0,1.0831402]
[1741424455185,6e-07,86359.0,86358.0,1.0511402]
[1741424455430,6e-07,86359.0,86358.0,1.0761402]
[1741424455631,6e-07,86359.0,86358.0,1.0831402]
[1741424456056,0.01815989,86359.0,86358.0,1.0831402]
[1741424458039,0.01815989,86359.0,86358.0,1.10666865]
[1741424458355,0.01815989,86359.0,86358.0,1.64066865]
[1741424459103,0.01815989,86359.0,86358.0,1.63366865]
[1741424459465,0.01815989,86359.0,86358.0,1.64066865]
[1741424460280,8.9e-07,86359.0,86358.0,1.64066865]
[1741424460667,0.0003396,86366.0,86365.0,0.568153]
[1741424460871,0.0003886,86366.0,86365.0,1.18149408]
[1741424461209,0.01854598,86366.0,86365.0,1.18149408]
[1741424462025,7.8e-07,86368.0,86367.0,0.486078]
[1741424462228,6.3e-07,86368.0,86367.0,1.46555795]
[1741424462970,4.3e-07,86372.0,86371.0,0.73217685]
[1741424464955,4.3e-07,86372.0,86371.0,0.73917685]
[1741424465391,4.3e-07,86372.0,86371.0,0.74617685]
[1741424465710,4.3e-07,86372.0,86371.0,0.73917685]
[1741424465852,4.3e-07,86372.0,86371.0,0.74617685]
[1741424466854,0.01815472,86377.0,86376.0,0.73756285]
[1741424466855,1.5e-07,86377.0,86376.0,0.73756285]
[1741424467028,0.00034,86404.0,86403.0,0.243046]
[1741424467227,0.00041186,86404.0,86403.0,0.36682685]
[1741424467827,0.01856575,86404.0,86403.0,0.36682685]
[1741424468789,0.01856575,86404.0,86403.0,0.37382685]
[1741424469230,0.01856575,86404.0,86403.0,0.38082685]
[1741424473374,0.01856575,86404.0,86403.0,0.13778085]
[1741424473629,0.01856575,86404.0,86403.0,0.3558702]
[1741424473909,0.01856575,86404.0,86403.0,0.354713]
[1741424474157,0.01856575,86404.0,86403.0,0.366286]
[1741424475077,0.01856575,86404.0,86403.0,0.014]
[1741424475291,0.09446575,86404.0,86403.0,0.12324]
[1741424475576,0.00041186,86404.0,86403.0,0.12324]
[1741424477379,0.00041186,86404.0,86403.0,0.354713]
[1741424477593,0.00041186,86404.0,86403.0,0.366286]
[1741424478428,0.01856573,86404.0,86403.0,0.366286]
[1741424480222,0.01856573,86404.0,86403.0,0.134813]
[1741424480366,0.01856573,86404.0,86403.0,0.12324]
[1741424481552,0.01856573,86404.0,86403.0,0.366286]
[1741424484495,0.00041186,86404.0,86403.0,0.366286]
[1741424487405,0.00041186,86404.0,86403.0,0.12324]
[1741424487574,0.00041186,86404.0,86403.0,0.1243972]
[1741424487776,0.00041186,86404.0,86403.0,0.3674432]
[1741424487978,0.17450923,86421.0,86408.0,0.231459]
[1741424488828,0.011571,86420.0,86409.0,0.243026]
[1741424489030,0.011571,86419.0,86409.0,0.243026]
[1741424489303,0.02881667,86420.0,86411.0,0.231451]
[1741424489706,0.01724567,86420.0,86413.0,0.231444]
[1741424489917,0.10364748,86416.0,86415.0,0.23144]
[1741424490050,0.10364748,86416.0,86414.0,0.120772]
[1741424490303,0.10364748,86416.0,86415.0,0.011572]
[1741424490517,0.10364748,86416.0,86414.0,0.1092]
[1741424491184,0.10364748,86416.0,86415.0,0.007]
[1741424492340,0.02908717,86420.0,86415.0,0.007]
[1741424492581,0.01757901,86420.0,86414.0,0.1192]
[1741424492825,0.01757901,86420.0,86415.0,0.007]
[1741424493280,0.02915001,86420.0,86415.0,0.007]
[1741424493493,0.02915001,86420.0,86414.0,0.1262]
[1741424493865,0.011571,86419.0,86414.0,0.1262]
[1741424494067,0.011571,86419.0,86415.0,0.007]
[1741424494677,0.03623737,86418.0,86415.0,0.007]
[1741424494819,0.04780837,86418.0,86415.0,0.007]
[1741424495030,0.03623737,86417.0,86415.0,0.007]
[1741424495647,0.03623737,86417.0,86414.0,0.1192]
[1741424495854,0.03623737,86417.0,86414.0,0.369214]
[1741424496091,0.01757901,86420.0,86415.0,0.018572]
[1741424496311,0.03624493,86419.0,86416.0,0.011571]
[1741424496754,0.0001698,86418.0,86417.0,0.011571]
[1741424496977,0.0001698,86418.0,86416.0,0.243007]
[1741424497214,0.0001698,86418.0,86415.0,0.007]
[1741424497461,0.0001698,86418.0,86414.0,0.362214]
[1741424498092,0.03624567,86417.0,86414.0,0.362214]
[1741424498298,0.03624567,86417.0,86415.0,0.007]
[1741424498541,0.03624567,86417.0,86416.0,0.38740695]
[1741424498749,0.0001698,86418.0,86417.0,0.011571]
[1741424498953,0.0001698,86418.0,86417.0,0.01318914]
[1741424499629,0.01469979,86423.0,86422.0,0.231422]
[1741424499878,0.00495,86428.0,86422.0,0.242993]
[1741424500532,0.00495,86428.0,86423.0,0.01157]
[1741424501106,0.01743823,86427.0,86423.0,0.01157]
[1741424502323,0.00495,86428.0,86423.0,0.01857]
[1741424502878,0.00495,86428.0,86423.0,0.03426786]
[1741424503123,0.00495,86428.0,86423.0,0.03463676]
[1741424503325,0.00495,86428.0,86423.0,0.04126786]
[1741424504026,0.00495,86428.0,86423.0,0.04163676]
[1741424504511,0.00495,86428.0,86423.0,0.34163676]
[1741424504722,0.00495,86428.0,86423.0,0.34047975]
[1741424504969,0.00495,86428.0,86423.0,0.46627975]
[1741424505400,0.00495,86428.0,86423.0,0.45927975]
[1741424505757,0.00495,86428.0,86423.0,0.46627975]
[1741424506006,0.10412925,86426.0,86423.0,0.45927975]
[1741424506237,0.10412925,86426.0,86423.0,0.45891085]
[1741424506461,0.10412925,86426.0,86423.0,0.46591085]
[1741424506699,0.10412925,86426.0,86423.0,0.45891085]
[1741424507129,0.10412925,86426.0,86423.0,0.46591085]
[1741424508523,0.10412925,86426.0,86423.0,0.78760995]
[1741424508784,0.0773754,86448.0,86434.0,0.242957]
[1741424509018,0.011568,86444.0,86435.0,0.120769]
[1741424509478,0.02937279,86444.0,86435.0,0.120769]
[1741424509914,0.011568,86443.0,86435.0,0.120769]
[1741424510468,0.011568,86443.0,86435.0,0.1092]
[1741424510673,0.011568,86442.0,86435.0,0.1092]
[1741424510878,0.0108699,86443.0,86435.0,0.1162]
[1741424511086,0.011568,86441.0,86435.0,0.1162]
[1741424511629,0.011568,86442.0,86435.0,0.1162]
[1741424511861,0.011568,86442.0,86435.0,0.1232]
[1741424512067,0.011568,86442.0,86435.0,0.1162]
[1741424512952,0.011568,86442.0,86435.0,0.1232]
[1741424513173,0.011568,86442.0,86435.0,0.1162]
[1741424513393,0.011568,86443.0,86435.0,0.1232]
[1741424513612,0.011568,86440.0,86435.0,0.1232]
[1741424514218,0.011568,86440.0,86435.0,0.1162]
[1741424514650,0.011568,86440.0,86435.0,0.1232]
[1741424514878,0.26073879,86444.0,86435.0,0.1232]
[1741424514879,0.01780479,86444.0,86437.0,0.011569]
[1741424515059,0.011568,86445.0,86437.0,0.011569]
[1741424515678,0.011568,86445.0,86437.0,0.242948]
[1741424516084,0.02012852,86448.0,86438.0,0.011568]
[1741424516333,0.01750982,86446.0,86439.0,0.231377]
[1741424516886,0.01750982,86446.0,86439.0,0.242945]
[1741424517092,0.00011629,86446.0,86445.0,0.011568]
[1741424517336,0.00011629,86446.0,86445.0,0.120728]
[1741424518989,0.00011629,86446.0,86445.0,0.10916]
[1741424519157,0.00011629,86446.0,86445.0,0.11616]
[1741424519784,0.01168329,86446.0,86445.0,0.11616]
[1741424520062,0.01168329,86446.0,86445.0,0.007]
[1741424520616,0.01168329,86446.0,86445.0,0.014]
[1741424520967,0.00011629,86446.0,86445.0,0.007]
[1741424521168,0.00011629,86446.0,86442.0,0.10916]
[1741424521439,0.00011629,86446.0,86445.0,0.007]
[1741424522278,0.01168329,86446.0,86445.0,0.014]
[1741424522493,0.35585877,86446.0,86445.0,0.014]
[1741424522879,0.35585877,86446.0,86445.0,0.007]
[1741424523526,0.12450077,86446.0,86445.0,0.007]
[1741424523795,0.011568,86445.0,86437.0,0.011569]
[1741424524012,0.03611748,86444.0,86437.0,0.011569]
[1741424524226,0.011568,86442.0,86434.0,0.242958]
[1741424524449,0.011568,86439.0,86432.0,0.10916]
[1741424524665,0.011569,86433.0,86432.0,0.10916]
[1741424524815,0.011569,86433.0,86427.0,0.10916]
[1741424525404,0.011569,86432.0,86427.0,0.10916]
[1741424526691,0.011569,86432.0,86427.0,0.10512]
[1741424527117,0.011569,86436.0,86427.0,0.10512]
[1741424527332,0.38818654,86442.0,86427.0,0.10512]
[1741424527333,0.011568,86442.0,86434.0,0.011569]
[1741424527550,0.011568,86439.0,86431.0,0.011569]
[1741424527764,0.011569,86437.0,86428.0,0.242976]
[1741424528185,0.10399757,86432.0,86428.0,0.242976]
[1741424528395,0.06338923,86439.0,86428.0,0.242976]
[1741424528828,0.06338923,86439.0,86434.0,0.006]
[1741424529039,0.011569,86437.0,86434.0,0.006]
[1741424529685,0.011568,86439.0,86434.0,0.006]
[1741424529899,0.011568,86438.0,86434.0,0.006]
[1741424530109,0.011568,86438.0,86429.0,0.01157]
[1741424530342,0.011568,86438.0,86430.0,0.242971]
[1741424530778,0.011568,86438.0,86434.0,0.017]
[1741424530986,0.011569,86436.0,86434.0,0.024]
[1741424531241,0.011569,86436.0,86434.0,0.0173394]
[1741424531446,0.011569,86435.0,86434.0,0.0103394]
[1741424533079,0.011569,86435.0,86434.0,0.0173394]
[1741424533635,0.011569,86435.0,86434.0,0.0243394]
[1741424533814,0.011569,86436.0,86434.0,0.0173394]
[1741424534227,0.011569,86435.0,86434.0,0.0243394]
[1741424534648,0.011569,86435.0,86434.0,0.0173394]
[1741424534869,0.011569,86435.0,86434.0,0.0103394]
[1741424535080,0.011569,86435.0,86434.0,0.0173394]
[1741424535493,0.242956,86435.0,86434.0,0.0173394]
[1741424535709,0.011569,86435.0,86434.0,0.0173394]
[1741424536350,0.011569,86435.0,86434.0,0.0243394]
[1741424536555,0.011569,86435.0,86434.0,0.0173394]
[1741424537341,0.011569,86435.0,86434.0,0.0243394]